[Event "Titled Tuesday Blitz July 4 Late 2023"]
[White "Erdogmus, Yagiz Kaan"]
[Black "Nunez V, Gustavo Eduardo"]
[WhiteFideId "44599790"]
[BlackFideId "4403690"]
[WhiteElo "2889"]
[BlackElo "2464"]
[Result "1-0"]
[Round "1"]
[TimeControl "180+2"]
[Date "2023.07.04"]
[WhiteClock "0:00:08"]
[BlackClock "0:00:33"]
[Board "37"]

1. e4 {[%clk 0:03:00]}  c5 {[%clk 0:02:57]} 2. Nf3 {[%clk 0:03:00]}  Nc6 {[%clk 0:02:57]} 3. d4 {[%clk 0:02:59]}  cxd4 {[%clk 0:02:58]} 4. Nxd4 {[%clk 0:03:00]}  e5 {[%clk 0:02:57]} 5. Nb5 {[%clk 0:03:00]}  a6 {[%clk 0:02:55]} 6. Nd6+ {[%clk 0:02:58]}  Bxd6 {[%clk 0:02:56]} 7. Qxd6 {[%clk 0:02:58]}  Qf6 {[%clk 0:02:57]} 8. Qxf6 {[%clk 0:02:36]}  Nxf6 {[%clk 0:02:58]} 9. Nc3 {[%clk 0:02:35]}  Nb4 {[%clk 0:02:56]} 10. Kd1 {[%clk 0:02:23]}  Ng4 {[%clk 0:02:41]} 11. Be3 {[%clk 0:01:24]}  Nxe3+ {[%clk 0:02:39]} 12. fxe3 {[%clk 0:01:24]}  O-O {[%clk 0:02:39]} 13. Kd2 {[%clk 0:01:18]}  d6 {[%clk 0:02:38]} 14. a3 {[%clk 0:01:09]}  Nc6 {[%clk 0:02:37]} 15. Rd1 {[%clk 0:01:09]}  Bg4 {[%clk 0:02:35]} 16. Be2 {[%clk 0:01:09]}  Bxe2 {[%clk 0:02:35]} 17. Kxe2 {[%clk 0:01:09]}  Rad8 {[%clk 0:02:36]} 18. Rd2 {[%clk 0:01:08]}  Na5 {[%clk 0:02:25]} 19. b3 {[%clk 0:01:05]}  Rfe8 {[%clk 0:02:18]} 20. Rhd1 {[%clk 0:00:58]}  Re6 {[%clk 0:02:19]} 21. Na4 {[%clk 0:00:51]}  Rg6 {[%clk 0:02:13]} 22. Kf2 {[%clk 0:00:50]}  h5 {[%clk 0:01:58]} 23. Rd5 {[%clk 0:00:40]}  b5 {[%clk 0:01:47]} 24. Nb2 {[%clk 0:00:29]}  Rc8 {[%clk 0:01:46]} 25. R1d2 {[%clk 0:00:27]}  Nb7 {[%clk 0:01:36]} 26. Nd3 {[%clk 0:00:27]}  Rf6+ {[%clk 0:01:30]} 27. Ke2 {[%clk 0:00:26]}  h4 {[%clk 0:01:28]} 28. Nb4 {[%clk 0:00:25]}  Nc5 {[%clk 0:01:24]} 29. Rxd6 {[%clk 0:00:21]}  Rxd6 {[%clk 0:01:23]} 30. Rxd6 {[%clk 0:00:21]}  Nxe4 {[%clk 0:01:24]} 31. Rxa6 {[%clk 0:00:21]}  Rd8 {[%clk 0:01:21]} 32. Nd3 {[%clk 0:00:20]}  Nc3+ {[%clk 0:01:20]} 33. Kd2 {[%clk 0:00:17]}  Nb1+ {[%clk 0:01:19]} 34. Kc1 {[%clk 0:00:17]}  Nc3 {[%clk 0:01:20]} 35. Rc6 {[%clk 0:00:16]}  Nd5 {[%clk 0:01:17]} 36. Nxe5 {[%clk 0:00:16]}  Nxe3 {[%clk 0:01:17]} 37. g3 {[%clk 0:00:16]}  h3 {[%clk 0:01:17]} 38. a4 {[%clk 0:00:15]}  bxa4 {[%clk 0:01:12]} 39. bxa4 {[%clk 0:00:16]}  Rd1+ {[%clk 0:01:12]} 40. Kb2 {[%clk 0:00:16]}  Nf1 {[%clk 0:01:09]} 41. Nf3 {[%clk 0:00:16]}  Rd5 {[%clk 0:01:06]} 42. Rc3 {[%clk 0:00:16]}  g5 {[%clk 0:01:03]} 43. Rd3 {[%clk 0:00:13]}  Ra5 {[%clk 0:01:03]} 44. Rd1 {[%clk 0:00:13]}  Ne3 {[%clk 0:01:01]} 45. Rd3 {[%clk 0:00:10]}  Ng4 {[%clk 0:00:57]} 46. Kb3 {[%clk 0:00:10]}  Nf2 {[%clk 0:00:50]} 47. Rd8+ {[%clk 0:00:07]}  Kg7 {[%clk 0:00:49]} 48. c4 {[%clk 0:00:08]}  g4 {[%clk 0:00:49]} 49. Nd4 {[%clk 0:00:08]}  Ne4 {[%clk 0:00:44]} 50. Rd5 {[%clk 0:00:09]}  Ra8 {[%clk 0:00:40]} 51. Nf5+ {[%clk 0:00:05]}  Kf6 {[%clk 0:00:40]} 52. Ne3 {[%clk 0:00:05]}  Ke6 {[%clk 0:00:38]} 53. Nxg4 {[%clk 0:00:05]}  f5 {[%clk 0:00:35]} 54. Re5+ {[%clk 0:00:05]}  Kd6 {[%clk 0:00:34]} 55. Rxf5 {[%clk 0:00:06]}  Rb8+ {[%clk 0:00:33]} 56. Rb5 {[%clk 0:00:06]}  Nc5+ {[%clk 0:00:32]} 57. Kb4 {[%clk 0:00:06]}  Nd3+ {[%clk 0:00:31]} 58. Kc3 {[%clk 0:00:06]}  Rg8 {[%clk 0:00:29]} 59. Nf6 {[%clk 0:00:04]}  Rf8 {[%clk 0:00:25]} 60. Ne4+ {[%clk 0:00:04]}  Kc6 {[%clk 0:00:26]} 61. Kxd3 {[%clk 0:00:05]}  Rf3+ {[%clk 0:00:26]} 62. Kd4 {[%clk 0:00:05]}  Rf1 {[%clk 0:00:25]} 63. Rh5 {[%clk 0:00:05]}  Ra1 {[%clk 0:00:25]} 64. Rh6+ {[%clk 0:00:05]}  Kd7 {[%clk 0:00:25]} 65. Rxh3 {[%clk 0:00:05]}  Rxa4 {[%clk 0:00:25]} 66. Nc5+ {[%clk 0:00:05]}  Kc6 {[%clk 0:00:26]} 67. Nxa4 {[%clk 0:00:06]}  Kb7 {[%clk 0:00:26]} 68. Rh6 {[%clk 0:00:07]}  Ka7 {[%clk 0:00:26]} 69. c5 {[%clk 0:00:08]}  Kb7 {[%clk 0:00:27]} 70. Kd5 {[%clk 0:00:07]}  Kc7 {[%clk 0:00:28]} 71. c6 {[%clk 0:00:08]}  Kb8 {[%clk 0:00:28]} 72. Kd6 {[%clk 0:00:08]}  Ka7 {[%clk 0:00:28]} 73. c7 {[%clk 0:00:08]}  Ka6 {[%clk 0:00:29]} 74. c8=Q+ {[%clk 0:00:08]}  Kb5 {[%clk 0:00:30]} 75. Qc5+ {[%clk 0:00:08]}  Kxa4 {[%clk 0:00:31]} 76. Rh4+ {[%clk 0:00:06]}  Kb3 {[%clk 0:00:32]} 77. Rb4+ {[%clk 0:00:07]}  Ka2 {[%clk 0:00:33]} 78. Qa5# {[%clk 0:00:08]} 1-0


[Site "https://www.chess.com"]

[Event "Titled Tuesday Blitz July 4 Late 2023"]
[White "Molenda, Marcin"]
[Black "Ibarra Jerez, Jose Carlos"]
[WhiteFideId "1173065"]
[BlackFideId "2226332"]
[WhiteElo "2460"]
[BlackElo "2881"]
[Result "1-0"]
[Round "1"]
[TimeControl "180+2"]
[Date "2023.07.04"]
[WhiteClock "0:00:22"]
[BlackClock "0:00:00"]
[Board "40"]

1. e4 {[%clk 0:02:57]}  c5 {[%clk 0:03:00]} 2. c3 {[%clk 0:02:56]}  Nf6 {[%clk 0:03:00]} 3. e5 {[%clk 0:02:56]}  Nd5 {[%clk 0:03:00]} 4. Nf3 {[%clk 0:02:56]}  Nc6 {[%clk 0:03:00]} 5. Bc4 {[%clk 0:02:50]}  Nb6 {[%clk 0:03:00]} 6. Bb3 {[%clk 0:02:49]}  g6 {[%clk 0:03:01]} 7. d4 {[%clk 0:02:32]}  cxd4 {[%clk 0:03:02]} 8. cxd4 {[%clk 0:02:32]}  Bg7 {[%clk 0:03:02]} 9. O-O {[%clk 0:02:30]}  O-O {[%clk 0:03:01]} 10. Nc3 {[%clk 0:02:27]}  d6 {[%clk 0:03:02]} 11. Bf4 {[%clk 0:02:24]}  Bg4 {[%clk 0:02:57]} 12. exd6 {[%clk 0:02:23]}  Nxd4 {[%clk 0:02:54]} 13. Qe1 {[%clk 0:01:46]}  exd6 {[%clk 0:02:33]} 14. Nxd4 {[%clk 0:01:44]}  Bxd4 {[%clk 0:02:34]} 15. h3 {[%clk 0:01:40]}  Bf5 {[%clk 0:02:27]} 16. Rd1 {[%clk 0:01:40]}  Re8 {[%clk 0:02:03]} 17. Qd2 {[%clk 0:01:36]}  Be5 {[%clk 0:02:02]} 18. Nb5 {[%clk 0:01:29]}  Bd3 {[%clk 0:01:11]} 19. Qxd3 {[%clk 0:01:13]}  Bxf4 {[%clk 0:01:11]} 20. Qf3 {[%clk 0:01:07]}  Qf6 {[%clk 0:00:41]} 21. Nc7 {[%clk 0:01:06]}  Kg7 {[%clk 0:00:33]} 22. Nxa8 {[%clk 0:01:04]}  Rxa8 {[%clk 0:00:33]} 23. Qxb7 {[%clk 0:00:55]}  Be5 {[%clk 0:00:31]} 24. Rfe1 {[%clk 0:00:50]}  h5 {[%clk 0:00:28]} 25. Qf3 {[%clk 0:00:46]}  Qxf3 {[%clk 0:00:22]} 26. gxf3 {[%clk 0:00:47]}  a5 {[%clk 0:00:21]} 27. f4 {[%clk 0:00:43]}  Bxf4 {[%clk 0:00:17]} 28. Re7 {[%clk 0:00:44]}  Rf8 {[%clk 0:00:16]} 29. Rb7 {[%clk 0:00:38]}  Nc8 {[%clk 0:00:14]} 30. Rd5 {[%clk 0:00:36]}  Bc1 {[%clk 0:00:04]} 31. Rxa5 {[%clk 0:00:31]}  Bxb2 {[%clk 0:00:04]} 32. Ra8 {[%clk 0:00:31]}  d5 {[%clk 0:00:03]} 33. Rbb8 {[%clk 0:00:27]}  Re8 {[%clk 0:00:01]} 34. Rxc8 {[%clk 0:00:27]}  Re1+ {[%clk 0:00:02]} 35. Kg2 {[%clk 0:00:27]}  Be5 {[%clk 0:00:03]} 36. Bxd5 {[%clk 0:00:26]}  Rd1 {[%clk 0:00:02]} 37. Bb3 {[%clk 0:00:25]}  Rd2 {[%clk 0:00:03]} 38. Ra7 {[%clk 0:00:23]}  Bd4 {[%clk 0:00:02]} 39. Rxf7+ {[%clk 0:00:23]}  Kh6 {[%clk 0:00:03]} 40. h4 {[%clk 0:00:22]}  g5 {[%clk 0:00:00]} 41. Rc6+ {[%clk 0:00:22]} 1-0


[Site "https://www.chess.com"]

[Event "Titled Tuesday Blitz July 4 Late 2023"]
[White "Bordi, Kevin"]
[Black "Baches Garcia, Guillermo"]
[WhiteFideId "621862"]
[BlackFideId "2209764"]
[WhiteElo "2878"]
[BlackElo "2460"]
[Result "1/2-1/2"]
[Round "1"]
[TimeControl "180+2"]
[Date "2023.07.04"]
[WhiteClock "0:00:07"]
[BlackClock "0:00:06"]
[Board "41"]

1. e4 {[%clk 0:03:00]}  d5 {[%clk 0:03:00]} 2. exd5 {[%clk 0:02:59]}  Qxd5 {[%clk 0:03:01]} 3. Nc3 {[%clk 0:03:00]}  Qa5 {[%clk 0:03:01]} 4. b4 {[%clk 0:03:01]}  Qxb4 {[%clk 0:03:01]} 5. Rb1 {[%clk 0:03:01]}  Qd6 {[%clk 0:03:01]} 6. Nf3 {[%clk 0:03:02]}  Nf6 {[%clk 0:03:00]} 7. d4 {[%clk 0:03:03]}  c6 {[%clk 0:03:00]} 8. Rb3 {[%clk 0:03:02]}  g6 {[%clk 0:02:57]} 9. Ba3 {[%clk 0:02:59]}  Qc7 {[%clk 0:02:56]} 10. d5 {[%clk 0:02:47]}  cxd5 {[%clk 0:02:49]} 11. Nxd5 {[%clk 0:02:39]}  Nxd5 {[%clk 0:02:44]} 12. Qxd5 {[%clk 0:02:38]}  Bg7 {[%clk 0:02:29]} 13. Re3 {[%clk 0:02:05]}  Be6 {[%clk 0:02:18]} 14. Qb5+ {[%clk 0:01:48]}  Nc6 {[%clk 0:02:14]} 15. Ng5 {[%clk 0:01:48]}  O-O {[%clk 0:02:01]} 16. Nxe6 {[%clk 0:01:32]}  fxe6 {[%clk 0:02:00]} 17. Bd3 {[%clk 0:01:02]}  Nd4 {[%clk 0:01:54]} 18. Qg5 {[%clk 0:00:51]}  Qc3+ {[%clk 0:01:46]} 19. Kf1 {[%clk 0:00:47]}  Qxa3 {[%clk 0:01:40]} 20. Re1 {[%clk 0:00:41]}  Qd6 {[%clk 0:01:33]} 21. h4 {[%clk 0:00:40]}  Qf4 {[%clk 0:01:32]} 22. Qxf4 {[%clk 0:00:40]}  Rxf4 {[%clk 0:01:32]} 23. h5 {[%clk 0:00:41]}  g5 {[%clk 0:01:28]} 24. h6 {[%clk 0:00:42]}  Bf6 {[%clk 0:01:25]} 25. c3 {[%clk 0:00:42]}  Nf5 {[%clk 0:01:22]} 26. Rh3 {[%clk 0:00:42]}  g4 {[%clk 0:01:15]} 27. Rh2 {[%clk 0:00:42]}  g3 {[%clk 0:01:12]} 28. Rh3 {[%clk 0:00:42]}  Rxf2+ {[%clk 0:01:09]} 29. Kg1 {[%clk 0:00:43]}  Bxc3 {[%clk 0:01:08]} 30. Rxe6 {[%clk 0:00:43]}  Bd4 {[%clk 0:01:06]} 31. Kh1 {[%clk 0:00:40]}  Rc8 {[%clk 0:01:03]} 32. Re1 {[%clk 0:00:37]}  Be5 {[%clk 0:00:46]} 33. Rh5 {[%clk 0:00:34]}  e6 {[%clk 0:00:46]} 34. Rg5+ {[%clk 0:00:34]}  Kf7 {[%clk 0:00:46]} 35. Rg4 {[%clk 0:00:34]}  Bf6 {[%clk 0:00:38]} 36. Rge4 {[%clk 0:00:33]}  Rd8 {[%clk 0:00:36]} 37. Bc4 {[%clk 0:00:33]}  Nd4 {[%clk 0:00:33]} 38. Rd1 {[%clk 0:00:30]}  Rc8 {[%clk 0:00:32]} 39. Bd3 {[%clk 0:00:27]}  Rc5 {[%clk 0:00:31]} 40. Rg4 {[%clk 0:00:26]}  Nf5 {[%clk 0:00:29]} 41. Re1 {[%clk 0:00:20]}  Rd5 {[%clk 0:00:28]} 42. Bc4 {[%clk 0:00:19]}  Rd6 {[%clk 0:00:26]} 43. Bb3 {[%clk 0:00:17]}  Rfd2 {[%clk 0:00:22]} 44. Rge4 {[%clk 0:00:17]}  Nd4 {[%clk 0:00:21]} 45. Ba4 {[%clk 0:00:15]}  b5 {[%clk 0:00:21]} 46. Bd1 {[%clk 0:00:15]}  Nf5 {[%clk 0:00:20]} 47. Bh5+ {[%clk 0:00:15]}  Ke7 {[%clk 0:00:20]} 48. Bg4 {[%clk 0:00:16]}  Kd7 {[%clk 0:00:17]} 49. Rf1 {[%clk 0:00:15]}  R6d4 {[%clk 0:00:17]} 50. Bf3 {[%clk 0:00:09]}  Rxe4 {[%clk 0:00:16]} 51. Bxe4 {[%clk 0:00:10]}  Bg5 {[%clk 0:00:13]} 52. Rb1 {[%clk 0:00:07]}  Be3 {[%clk 0:00:12]} 53. Bf3 {[%clk 0:00:05]}  Bf2 {[%clk 0:00:11]} 54. Rxb5 {[%clk 0:00:04]}  Rxa2 {[%clk 0:00:11]} 55. Rb7+ {[%clk 0:00:04]}  Kd6 {[%clk 0:00:11]} 56. Rb1 {[%clk 0:00:05]}  a5 {[%clk 0:00:09]} 57. Be4 {[%clk 0:00:05]}  Ke5 {[%clk 0:00:08]} 58. Bxf5 {[%clk 0:00:06]}  exf5 {[%clk 0:00:07]} 59. Rb5+ {[%clk 0:00:06]}  Ke6 {[%clk 0:00:07]} 60. Re5+ {[%clk 0:00:06]}  Kd6 {[%clk 0:00:07]} 61. Rd5+ {[%clk 0:00:06]}  Kc6 {[%clk 0:00:07]} 62. Rc5+ {[%clk 0:00:07]}  Kb6 {[%clk 0:00:07]} 63. Rb5+ {[%clk 0:00:07]}  Ka6 {[%clk 0:00:06]} 64. Rxa5+ {[%clk 0:00:07]}  Rxa5 {[%clk 0:00:06]} 1/2-1/2


[Site "https://www.chess.com"]

[Event "Titled Tuesday Blitz July 4 Late 2023"]
[White "Rengifo Blancas, Renzo Jhonathan"]
[Black "Elsa167"]
[WhiteFideId "3807185"]
[WhiteElo "2454"]
[BlackElo "2867"]
[Result "1-0"]
[Round "1"]
[TimeControl "180+2"]
[Date "2023.07.04"]
[WhiteClock "0:00:07"]
[BlackClock "0:00:08"]
[Board "42"]

1. e4 {[%clk 0:03:00]}  e6 {[%clk 0:02:59]} 2. d4 {[%clk 0:02:55]}  d5 {[%clk 0:03:00]} 3. Bd3 {[%clk 0:02:56]}  c5 {[%clk 0:02:59]} 4. exd5 {[%clk 0:02:55]}  exd5 {[%clk 0:02:59]} 5. dxc5 {[%clk 0:02:48]}  Bxc5 {[%clk 0:02:59]} 6. Nf3 {[%clk 0:02:49]}  Nf6 {[%clk 0:02:59]} 7. O-O {[%clk 0:02:50]}  O-O {[%clk 0:02:59]} 8. Nc3 {[%clk 0:02:51]}  Nc6 {[%clk 0:02:58]} 9. h3 {[%clk 0:02:50]}  h6 {[%clk 0:02:58]} 10. Bf4 {[%clk 0:02:49]}  Re8 {[%clk 0:02:53]} 11. Qd2 {[%clk 0:02:47]}  Be6 {[%clk 0:02:47]} 12. Rfe1 {[%clk 0:02:47]}  Bb4 {[%clk 0:02:25]} 13. a3 {[%clk 0:02:45]}  Ba5 {[%clk 0:02:25]} 14. b4 {[%clk 0:02:45]}  Bc7 {[%clk 0:02:25]} 15. Rad1 {[%clk 0:02:45]}  Bxf4 {[%clk 0:02:20]} 16. Qxf4 {[%clk 0:02:46]}  Rc8 {[%clk 0:02:18]} 17. Nb5 {[%clk 0:02:45]}  a6 {[%clk 0:02:09]} 18. Nd6 {[%clk 0:02:44]}  Qc7 {[%clk 0:02:09]} 19. Qh2 {[%clk 0:02:38]}  Red8 {[%clk 0:02:07]} 20. Nxc8 {[%clk 0:02:37]}  Qxc8 {[%clk 0:02:07]} 21. Qf4 {[%clk 0:02:24]}  Ne7 {[%clk 0:02:04]} 22. Nd4 {[%clk 0:02:14]}  Nc6 {[%clk 0:01:59]} 23. Nxe6 {[%clk 0:02:13]}  fxe6 {[%clk 0:02:00]} 24. Qh4 {[%clk 0:01:56]}  e5 {[%clk 0:01:59]} 25. c4 {[%clk 0:01:48]}  e4 {[%clk 0:01:43]} 26. cxd5 {[%clk 0:01:48]}  exd3 {[%clk 0:01:43]} 27. dxc6 {[%clk 0:01:48]}  Qxc6 {[%clk 0:01:43]} 28. Qg3 {[%clk 0:01:40]}  Qc2 {[%clk 0:01:33]} 29. Rb1 {[%clk 0:00:44]}  Ne4 {[%clk 0:01:18]} 30. Qe3 {[%clk 0:00:26]}  d2 {[%clk 0:01:14]} 31. Red1 {[%clk 0:00:26]}  Nc3 {[%clk 0:01:12]} 32. Qe7 {[%clk 0:00:15]}  Rf8 {[%clk 0:00:48]} 33. Qc5 {[%clk 0:00:13]}  Rd8 {[%clk 0:00:29]} 34. Ra1 {[%clk 0:00:11]}  Qd3 {[%clk 0:00:26]} 35. Qe7 {[%clk 0:00:04]}  Nxd1 {[%clk 0:00:24]} 36. Rxd1 {[%clk 0:00:04]}  Rd7 {[%clk 0:00:17]} 37. Qe6+ {[%clk 0:00:04]}  Kh7 {[%clk 0:00:17]} 38. Kh2 {[%clk 0:00:05]}  Qd6+ {[%clk 0:00:16]} 39. Qxd6 {[%clk 0:00:05]}  Rxd6 {[%clk 0:00:17]} 40. Kg3 {[%clk 0:00:06]}  Rd3+ {[%clk 0:00:18]} 41. Kf4 {[%clk 0:00:06]}  b5 {[%clk 0:00:11]} 42. Ke4 {[%clk 0:00:06]}  Rxa3 {[%clk 0:00:11]} 43. Rxd2 {[%clk 0:00:07]}  Rb3 {[%clk 0:00:11]} 44. Rd4 {[%clk 0:00:07]}  Rb2 {[%clk 0:00:12]} 45. Kf3 {[%clk 0:00:07]}  g5 {[%clk 0:00:12]} 46. Rd6 {[%clk 0:00:07]}  Ra2 {[%clk 0:00:11]} 47. Rb6 {[%clk 0:00:07]}  h5 {[%clk 0:00:10]} 48. Ke3 {[%clk 0:00:07]}  Ra3+ {[%clk 0:00:10]} 49. Ke2 {[%clk 0:00:07]}  h4 {[%clk 0:00:10]} 50. Rc6 {[%clk 0:00:07]}  Kg7 {[%clk 0:00:10]} 51. Rb6 {[%clk 0:00:07]}  Kf7 {[%clk 0:00:11]} 52. Rc6 {[%clk 0:00:08]}  Ra4 {[%clk 0:00:12]} 53. Rb6 {[%clk 0:00:08]}  Ke7 {[%clk 0:00:12]} 54. Rg6 {[%clk 0:00:08]}  Kd7 {[%clk 0:00:13]} 55. Rxg5 {[%clk 0:00:06]}  Rxb4 {[%clk 0:00:13]} 56. Rg6 {[%clk 0:00:07]}  a5 {[%clk 0:00:13]} 57. Ra6 {[%clk 0:00:07]}  a4 {[%clk 0:00:13]} 58. g4 {[%clk 0:00:07]}  hxg3 {[%clk 0:00:13]} 59. fxg3 {[%clk 0:00:07]}  Kc7 {[%clk 0:00:10]} 60. h4 {[%clk 0:00:08]}  Kb7 {[%clk 0:00:10]} 61. Ra5 {[%clk 0:00:06]}  Re4+ {[%clk 0:00:09]} 62. Kf3 {[%clk 0:00:06]}  Kb6 {[%clk 0:00:08]} 63. Ra8 {[%clk 0:00:05]}  Re7 {[%clk 0:00:08]} 64. h5 {[%clk 0:00:06]}  Kb7 {[%clk 0:00:04]} 65. Ra5 {[%clk 0:00:05]}  Kb6 {[%clk 0:00:05]} 66. Ra8 {[%clk 0:00:05]}  Rf7+ {[%clk 0:00:03]} 67. Ke4 {[%clk 0:00:05]}  Rg7 {[%clk 0:00:03]} 68. Kf4 {[%clk 0:00:05]}  Rf7+ {[%clk 0:00:04]} 69. Ke4 {[%clk 0:00:05]}  Re7+ {[%clk 0:00:03]} 70. Kf4 {[%clk 0:00:05]}  Rg7 {[%clk 0:00:01]} 71. h6 {[%clk 0:00:04]}  Rg6 {[%clk 0:00:01]} 72. h7 {[%clk 0:00:04]}  Rh6 {[%clk 0:00:01]} 73. h8=Q {[%clk 0:00:03]}  Rxh8 {[%clk 0:00:02]} 74. Rxh8 {[%clk 0:00:04]}  a3 {[%clk 0:00:03]} 75. Ra8 {[%clk 0:00:04]}  b4 {[%clk 0:00:04]} 76. g4 {[%clk 0:00:05]}  Kc5 {[%clk 0:00:04]} 77. g5 {[%clk 0:00:05]}  Kc4 {[%clk 0:00:05]} 78. g6 {[%clk 0:00:06]}  b3 {[%clk 0:00:06]} 79. g7 {[%clk 0:00:07]}  b2 {[%clk 0:00:06]} 80. g8=Q+ {[%clk 0:00:06]}  Kc3 {[%clk 0:00:07]} 81. Qc8+ {[%clk 0:00:07]}  Kb3 {[%clk 0:00:07]} 82. Qb7+ {[%clk 0:00:07]}  Ka2 {[%clk 0:00:08]} 83. Qd5+ {[%clk 0:00:07]}  Kb1 {[%clk 0:00:07]} 84. Qd1+ {[%clk 0:00:07]}  Ka2 {[%clk 0:00:08]} 85. Qc2 {[%clk 0:00:07]}  Ka1 {[%clk 0:00:08]} 86. Rxa3# {[%clk 0:00:07]} 1-0


[Site "https://www.chess.com"]

[Event "Titled Tuesday Blitz July 4 Late 2023"]
[White "Mackster23"]
[Black "Pichot, Alan"]
[BlackFideId "110973"]
[WhiteElo "2451"]
[BlackElo "2835"]
[Result "0-1"]
[Round "1"]
[TimeControl "180+2"]
[Date "2023.07.04"]
[WhiteClock "0:00:07"]
[BlackClock "0:00:15"]
[Board "46"]

1. e4 {[%clk 0:02:59]}  c5 {[%clk 0:02:58]} 2. Nc3 {[%clk 0:02:54]}  d6 {[%clk 0:02:57]} 3. d4 {[%clk 0:02:53]}  cxd4 {[%clk 0:02:56]} 4. Qxd4 {[%clk 0:02:54]}  Nc6 {[%clk 0:02:57]} 5. Qd2 {[%clk 0:02:52]}  g6 {[%clk 0:02:55]} 6. b3 {[%clk 0:02:52]}  Bh6 {[%clk 0:02:56]} 7. f4 {[%clk 0:02:51]}  f5 {[%clk 0:02:56]} 8. Bb2 {[%clk 0:02:50]}  Nf6 {[%clk 0:02:56]} 9. Nge2 {[%clk 0:02:48]}  fxe4 {[%clk 0:02:47]} 10. O-O-O {[%clk 0:02:47]}  Rf8 {[%clk 0:02:24]} 11. g3 {[%clk 0:02:41]}  Qb6 {[%clk 0:02:07]} 12. Kb1 {[%clk 0:02:13]}  e3 {[%clk 0:02:02]} 13. Qc1 {[%clk 0:01:48]}  Bf5 {[%clk 0:01:59]} 14. Na4 {[%clk 0:01:42]}  Qc7 {[%clk 0:01:56]} 15. Nac3 {[%clk 0:01:14]}  Ng4 {[%clk 0:01:33]} 16. Nd5 {[%clk 0:01:04]}  Qa5 {[%clk 0:01:32]} 17. Bc3 {[%clk 0:00:56]}  Qc5 {[%clk 0:01:16]} 18. b4 {[%clk 0:00:27]}  Qc4 {[%clk 0:01:14]} 19. Nxe3 {[%clk 0:00:18]}  Nxe3 {[%clk 0:01:09]} 20. Qxe3 {[%clk 0:00:19]}  Nxb4 {[%clk 0:01:07]} 21. Nd4 {[%clk 0:00:19]}  Qxa2+ {[%clk 0:01:06]} 22. Kc1 {[%clk 0:00:20]}  Nxc2 {[%clk 0:01:01]} 23. Bb5+ {[%clk 0:00:18]}  Kd8 {[%clk 0:00:27]} 24. Qe2 {[%clk 0:00:17]}  Nb4 {[%clk 0:00:16]} 25. Bxb4 {[%clk 0:00:16]}  Rc8+ {[%clk 0:00:16]} 26. Nc6+ {[%clk 0:00:11]}  Rxc6+ {[%clk 0:00:16]} 27. Bxc6 {[%clk 0:00:10]}  Qxe2 {[%clk 0:00:16]} 28. Ba4 {[%clk 0:00:07]}  Qc4+ {[%clk 0:00:15]} 0-1


[Site "https://www.chess.com"]

[Event "Titled Tuesday Blitz July 4 Late 2023"]
[White "Ozen, Bahadir"]
[Black "Horcajuelo Rocamora, Martin"]
[WhiteFideId "6337058"]
[BlackFideId "24573027"]
[WhiteElo "2823"]
[BlackElo "2447"]
[Result "1-0"]
[Round "1"]
[TimeControl "180+2"]
[Date "2023.07.04"]
[WhiteClock "0:01:27"]
[BlackClock "0:01:23"]
[Board "49"]

1. g3 {[%clk 0:03:00]}  Nf6 {[%clk 0:02:57]} 2. Bg2 {[%clk 0:03:01]}  g6 {[%clk 0:02:58]} 3. Nf3 {[%clk 0:03:00]}  Bg7 {[%clk 0:02:59]} 4. O-O {[%clk 0:03:00]}  O-O {[%clk 0:02:59]} 5. d3 {[%clk 0:03:01]}  d5 {[%clk 0:02:59]} 6. Nbd2 {[%clk 0:03:01]}  c5 {[%clk 0:02:58]} 7. e4 {[%clk 0:03:01]}  Nc6 {[%clk 0:02:59]} 8. Re1 {[%clk 0:03:01]}  e5 {[%clk 0:02:59]} 9. c3 {[%clk 0:03:01]}  h6 {[%clk 0:02:58]} 10. a3 {[%clk 0:03:01]}  Be6 {[%clk 0:02:58]} 11. b4 {[%clk 0:03:01]}  cxb4 {[%clk 0:02:56]} 12. axb4 {[%clk 0:03:01]}  dxe4 {[%clk 0:02:57]} 13. dxe4 {[%clk 0:03:01]}  a6 {[%clk 0:02:56]} 14. Bb2 {[%clk 0:02:42]}  Qb6 {[%clk 0:02:50]} 15. Qe2 {[%clk 0:02:41]}  Rad8 {[%clk 0:02:44]} 16. Nc4 {[%clk 0:02:40]}  Qb5 {[%clk 0:02:42]} 17. Bf1 {[%clk 0:02:27]}  Ne8 {[%clk 0:02:30]} 18. Nfd2 {[%clk 0:02:20]}  a5 {[%clk 0:02:22]} 19. Nxa5 {[%clk 0:02:13]}  Qxe2 {[%clk 0:02:23]} 20. Rxe2 {[%clk 0:02:14]}  Nxa5 {[%clk 0:02:22]} 21. Rxa5 {[%clk 0:02:14]}  Nd6 {[%clk 0:02:20]} 22. Re1 {[%clk 0:02:09]}  Kh7 {[%clk 0:02:10]} 23. c4 {[%clk 0:02:01]}  b6 {[%clk 0:02:09]} 24. Ra6 {[%clk 0:01:56]}  Rc8 {[%clk 0:02:09]} 25. c5 {[%clk 0:01:55]}  Ne8 {[%clk 0:02:03]} 26. Rxb6 {[%clk 0:01:54]}  Bf6 {[%clk 0:02:02]} 27. Nc4 {[%clk 0:01:53]}  Bd8 {[%clk 0:01:57]} 28. Rb7 {[%clk 0:01:47]}  Bxc4 {[%clk 0:01:51]} 29. Bxc4 {[%clk 0:01:48]}  Nd6 {[%clk 0:01:52]} 30. cxd6 {[%clk 0:01:48]}  Rxc4 {[%clk 0:01:52]} 31. Bxe5 {[%clk 0:01:49]}  Kg8 {[%clk 0:01:50]} 32. f3 {[%clk 0:01:38]}  Re8 {[%clk 0:01:49]} 33. Bf4 {[%clk 0:01:35]}  g5 {[%clk 0:01:48]} 34. Be3 {[%clk 0:01:35]}  Rc3 {[%clk 0:01:45]} 35. d7 {[%clk 0:01:29]}  Re7 {[%clk 0:01:44]} 36. Bc5 {[%clk 0:01:28]}  Kf8 {[%clk 0:01:23]} 37. Rb8 {[%clk 0:01:27]} 1-0


[Site "https://www.chess.com"]

[Event "Titled Tuesday Blitz July 4 Late 2023"]
[White "Remolar Gallen, Jose"]
[Black "Hamidi, Amir Mohammad"]
[WhiteFideId "2215187"]
[BlackFideId "12563285"]
[WhiteElo "2443"]
[BlackElo "2803"]
[Result "1-0"]
[Round "1"]
[TimeControl "180+2"]
[Date "2023.07.04"]
[WhiteClock "0:00:24"]
[BlackClock "0:00:44"]
[Board "52"]

1. e4 {[%clk 0:02:59]}  e6 {[%clk 0:02:58]} 2. d4 {[%clk 0:02:58]}  d5 {[%clk 0:02:59]} 3. e5 {[%clk 0:02:57]}  c5 {[%clk 0:02:59]} 4. c3 {[%clk 0:02:57]}  Nc6 {[%clk 0:02:59]} 5. Nf3 {[%clk 0:02:57]}  Qb6 {[%clk 0:03:00]} 6. Be2 {[%clk 0:02:57]}  Nh6 {[%clk 0:03:00]} 7. Na3 {[%clk 0:02:56]}  cxd4 {[%clk 0:02:36]} 8. cxd4 {[%clk 0:02:57]}  Nf5 {[%clk 0:02:36]} 9. Nc2 {[%clk 0:02:56]}  Nb4 {[%clk 0:02:36]} 10. Ne3 {[%clk 0:02:16]}  Nxe3 {[%clk 0:02:02]} 11. Bxe3 {[%clk 0:02:17]}  Be7 {[%clk 0:02:02]} 12. O-O {[%clk 0:02:10]}  O-O {[%clk 0:02:01]} 13. a3 {[%clk 0:01:53]}  Nc6 {[%clk 0:02:00]} 14. b4 {[%clk 0:01:53]}  Bd7 {[%clk 0:02:00]} 15. Qd2 {[%clk 0:01:49]}  Rac8 {[%clk 0:01:57]} 16. Rfc1 {[%clk 0:01:49]}  a6 {[%clk 0:01:53]} 17. h4 {[%clk 0:01:45]}  Rfe8 {[%clk 0:01:47]} 18. h5 {[%clk 0:01:44]}  Qd8 {[%clk 0:01:40]} 19. Bd3 {[%clk 0:01:38]}  Kh8 {[%clk 0:01:32]} 20. Rc3 {[%clk 0:01:29]}  Na7 {[%clk 0:01:27]} 21. Rac1 {[%clk 0:01:24]}  Rxc3 {[%clk 0:01:27]} 22. Qxc3 {[%clk 0:01:18]}  Nb5 {[%clk 0:01:24]} 23. Qb3 {[%clk 0:01:18]}  h6 {[%clk 0:01:21]} 24. Bb1 {[%clk 0:01:13]}  f5 {[%clk 0:01:16]} 25. a4 {[%clk 0:01:06]}  Na7 {[%clk 0:01:15]} 26. g4 {[%clk 0:01:03]}  Rf8 {[%clk 0:01:09]} 27. gxf5 {[%clk 0:01:02]}  Nc6 {[%clk 0:01:08]} 28. f6 {[%clk 0:00:46]}  gxf6 {[%clk 0:01:06]} 29. Nh4 {[%clk 0:00:46]}  fxe5 {[%clk 0:01:05]} 30. Ng6+ {[%clk 0:00:44]}  Kg7 {[%clk 0:01:04]} 31. dxe5 {[%clk 0:00:40]}  Bg5 {[%clk 0:01:02]} 32. Nxf8 {[%clk 0:00:33]}  Kxf8 {[%clk 0:01:02]} 33. Bc5+ {[%clk 0:00:26]}  Kg8 {[%clk 0:00:59]} 34. Qd3 {[%clk 0:00:25]}  Ne7 {[%clk 0:00:51]} 35. Qh7+ {[%clk 0:00:25]}  Kf8 {[%clk 0:00:44]} 36. Rc3 {[%clk 0:00:24]} 1-0


[Site "https://www.chess.com"]